bitfinex-derivatives/quotes_BNBF0:USTF0_20250617
["timestamp","ask_amount","ask_price","bid_price","bid_amount"]
[1750124180161,2.78046609,654.59,654.54,1.149]
[1750124180360,0.5118399,654.58,654.54,1.149]
[1750124180761,2.78023116,654.59,654.54,1.149]
[1750124181056,2.77912807,654.58,654.54,1.149]
[1750124181260,2.77912807,654.57,654.54,1.149]
[1750124181457,2.77912807,654.56,654.54,1.149]
[1750124181658,2.26729994,654.55,654.43,1.597]
[1750124181858,1.13859529,654.61,654.43,1.597]
[1750124182058,1.13859529,654.64,654.43,1.597]
[1750124182260,1.13859529,654.68,654.43,1.597]
[1750124182458,1.13859529,654.69,654.43,1.597]
[1750124182758,1.13859529,654.68,654.43,1.597]
[1750124183662,0.9789511,654.68,654.43,1.597]
[1750124183862,2.26667611,654.69,654.43,1.597]
[1750124184157,0.9789511,654.69,654.43,1.597]
[1750124184358,1.13859529,654.7,654.43,1.597]
[1750124185256,0.26584773,654.67,654.44,1.819]
[1750124187465,0.9789511,654.72,654.44,1.819]
[1750124187658,1.13859529,654.73,654.44,1.819]
[1750124187864,1.13859529,654.71,654.44,1.819]
[1750124188362,1.13859529,654.72,654.44,1.819]
[1750124188758,1.13859529,654.71,654.44,1.819]
[1750124189863,1.13859529,654.7,654.44,1.819]
[1750124192058,1.13859529,654.67,654.44,1.819]
[1750124192462,1.13859529,654.66,654.44,1.819]
[1750124192662,1.13859529,654.67,654.44,1.819]
[1750124193460,1.13859529,654.66,654.44,1.819]
[1750124193661,1.13859529,654.66,654.45,1.217]
[1750124193964,1.13859529,654.67,654.45,1.217]
[1750124194264,1.13859529,654.66,654.45,1.217]
[1750124195862,1.13859529,654.65,654.45,1.217]
[1750124196267,1.13859529,654.64,654.45,1.217]
[1750124196463,1.13859529,654.65,654.45,1.217]
[1750124196663,1.13859529,654.63,654.45,1.217]
[1750124198065,1.13859529,654.61,654.45,1.217]
[1750124199471,1.13859529,654.6,654.45,1.217]
[1750124199772,1.14043472,654.6,654.45,1.217]
[1750124199967,1.14043472,654.61,654.45,1.217]
[1750124200377,1.14043472,654.6,654.45,1.217]
[1750124201376,1.14043472,654.59,654.45,1.217]
[1750124201576,1.14043472,654.6,654.45,1.217]
[1750124202374,1.14043472,654.59,654.45,1.217]
[1750124204378,1.14043472,654.58,654.45,1.217]
[1750124205876,2.12005716,654.58,654.45,1.217]
[1750124206074,1.14043472,654.58,654.45,1.217]
[1750124206377,1.14043472,654.59,654.45,1.217]
[1750124207380,1.14043472,654.58,654.45,1.217]
[1750124208483,1.14043472,654.57,654.45,1.217]
[1750124209778,1.14043472,654.56,654.45,1.217]
[1750124210979,2.12119349,654.56,654.45,1.217]
[1750124211182,0.98075877,654.55,654.45,1.217]
[1750124211380,1.14043472,654.56,654.45,1.217]
[1750124211580,1.14043472,654.55,654.45,1.217]
[1750124213283,0.26583047,654.74,654.45,1.217]
[1750124213284,1.14043472,654.53,654.45,1.217]
[1750124213682,1.14043472,654.51,654.45,1.217]
[1750124214787,1.14043472,654.47,654.45,1.217]
[1750124214984,2.12176061,654.5,654.45,1.217]
[1750124215187,1.14043472,654.46,654.45,1.217]
[1750124215387,0.26583047,654.74,654.45,1.217]
[1750124215388,2.12195468,654.48,654.45,1.217]
[1750124215584,0.98151996,654.47,654.45,1.217]
[1750124215888,1.14043472,654.47,654.45,1.217]
[1750124217189,2.78177499,654.56,654.45,1.217]
[1750124217384,2.78177499,654.55,654.45,1.217]
[1750124217588,2.78177499,654.54,654.45,1.217]
[1750124217889,2.78177499,654.53,654.45,1.217]
[1750124218085,2.78177499,654.52,654.45,1.217]
[1750124218388,2.78177499,654.51,654.45,1.217]
[1750124218588,2.78177499,654.5,654.45,1.217]
[1750124218884,2.78177499,654.49,654.45,1.217]
[1750124219086,2.78177499,654.48,654.45,1.217]
[1750124219290,2.78177499,654.47,654.45,1.217]
[1750124219590,2.77672742,654.46,654.45,1.217]
[1750124219787,1.80000493,654.46,654.45,1.217]
[1750124219990,1.48811681,654.57,654.45,1.217]
[1750124220291,0.97672249,654.56,654.45,1.217]
[1750124220490,1.51886137,654.51,654.45,1.217]
[1750124220687,0.97672249,654.5,654.45,1.217]
[1750124220892,2.2653331,654.49,654.45,1.217]
[1750124221092,2.28892678,654.46,654.45,1.217]
[1750124221291,2.2653331,654.46,654.45,1.217]
[1750124221487,2.77672742,654.46,654.45,1.217]
[1750124221893,1.80000493,654.46,654.45,1.217]
[1750124222193,2.26439707,654.46,654.45,1.217]
[1750124222386,2.77579139,654.46,654.45,1.217]
[1750124222591,2.77579139,654.46,654.43,1.547]
[1750124222789,2.77579139,654.45,654.43,1.547]
[1750124222991,1.48706949,654.44,654.43,1.547]
[1750124223393,1.80000493,654.44,654.43,1.547]
[1750124223595,2.7756801,654.45,654.43,1.547]
[1750124223796,2.7756801,654.44,654.43,1.547]
[1750124223992,1.48706949,654.44,654.43,1.547]
[1750124224194,1.48706949,654.56,654.43,1.547]
[1750124224393,0.97567517,654.55,654.43,1.547]
[1750124224592,0.51054195,654.56,654.43,1.547]
[1750124224795,0.97509151,654.55,654.43,1.547]
[1750124225094,0.97509151,654.54,654.43,1.547]
[1750124225295,2.28363858,654.48,654.43,1.547]
[1750124225495,2.28363858,654.46,654.43,1.547]
[1750124225692,2.77203463,654.45,654.43,1.547]
[1750124225995,1.48563346,654.44,654.43,1.547]
[1750124226491,2.77203463,654.44,654.43,1.547]
[1750124226991,5.05567321,654.44,654.43,1.547]
[1750124227296,4.29273997,654.44,654.43,1.547]
[1750124227494,1.28640117,654.44,654.41,1.398]
[1750124227697,1.52070534,654.45,654.41,1.398]
[1750124227997,1.52070534,654.46,654.41,1.398]
[1750124229397,1.52070534,654.47,654.41,1.398]
[1750124230396,1.52070534,654.49,654.41,1.398]
[1750124232500,1.52070534,654.5,654.41,1.398]
[1750124233095,0.97417695,654.49,654.41,1.398]
[1750124233297,0.97417695,654.48,654.41,1.398]
[1750124233498,0.97417695,654.47,654.41,1.398]
[1750124233696,0.97417695,654.46,654.41,1.398]
[1750124233901,0.97417695,654.47,654.41,1.398]
[1750124234101,0.97417695,654.46,654.41,1.398]
[1750124234303,0.97417695,654.47,654.41,1.398]
[1750124234598,0.97417695,654.46,654.41,1.398]
[1750124234797,0.97417695,654.47,654.41,1.398]
[1750124235498,0.97275981,654.47,654.41,1.398]
[1750124235700,2.76540154,654.47,654.41,1.398]
[1750124235898,2.76540154,654.46,654.41,1.398]
[1750124236101,2.76540154,654.45,654.41,1.398]
[1750124236301,2.76540154,654.44,654.41,1.398]
[1750124236502,2.76540154,654.43,654.41,1.398]
[1750124236699,2.76540154,654.42,654.41,1.398]
[1750124236902,0.50932278,654.42,654.41,1.398]
[1750124237100,1.48208259,654.48,654.41,1.398]
[1750124237403,1.52070534,654.42,654.41,1.398]
[1750124238400,4.28578689,654.42,654.41,1.398]
[1750124240503,2.76508155,654.42,654.41,1.398]
[1750124241003,2.76499537,654.42,654.41,1.398]
[1750124241400,0.50914461,654.42,654.41,1.398]
[1750124241599,1.48190442,654.47,654.41,1.398]
[1750124241798,0.97275981,654.46,654.41,1.398]
[1750124242001,0.97275981,654.45,654.41,1.398]
[1750124242201,0.97275981,654.46,654.41,1.398]
[1750124242400,0.97275981,654.45,654.41,1.398]
[1750124242600,0.97275981,654.46,654.41,1.398]
[1750124242800,0.97275981,654.45,654.41,1.398]
[1750124243004,0.97275981,654.46,654.41,1.398]
[1750124243204,0.97275981,654.45,654.41,1.398]
[1750124243501,0.97275981,654.46,654.41,1.398]
[1750124243701,0.50914461,654.47,654.41,1.398]
[1750124243901,0.97229889,654.46,654.41,1.398]
[1750124244202,1.4814435,654.47,654.41,1.398]
[1750124244605,2.76415385,654.48,654.41,1.398]
[1750124244805,2.76415385,654.47,654.41,1.398]
[1750124245006,2.76415385,654.46,654.41,1.398]
[1750124245304,2.76415385,654.45,654.41,1.398]
[1750124245605,2.76415385,654.44,654.41,1.398]
[1750124245806,2.76415385,654.43,654.41,1.398]
[1750124246006,2.76415385,654.42,654.41,1.398]
[1750124246204,0.50914461,654.42,654.41,1.398]
[1750124246401,1.4814435,654.5,654.41,1.398]
[1750124246603,0.97229889,654.49,654.41,1.398]
[1750124246804,0.97229889,654.48,654.41,1.398]
[1750124247006,0.97229889,654.49,654.41,1.398]
[1750124247304,0.97229889,654.48,654.41,1.398]
[1750124247506,0.97229889,654.49,654.41,1.398]
[1750124247706,0.97229889,654.48,654.41,1.398]
[1750124248002,0.97229889,654.47,654.41,1.398]
[1750124248202,0.97229889,654.46,654.41,1.398]
[1750124248507,0.97229889,654.45,654.41,1.398]
[1750124248707,0.97229889,654.44,654.41,1.398]
[1750124248910,0.97229889,654.49,654.41,1.398]
[1750124249106,0.97229889,654.48,654.41,1.398]
[1750124249310,0.98119493,654.47,654.41,1.398]
[1750124249507,0.98119493,654.46,654.41,1.398]
[1750124249810,0.98119493,654.45,654.41,1.398]
[1750124250010,0.98119493,654.44,654.41,1.398]
[1750124250310,0.50813954,654.49,654.41,1.398]
[1750124250311,0.9812022,654.48,654.41,1.398]
[1750124250506,0.9812022,654.47,654.41,1.398]
[1750124250710,0.9812022,654.46,654.41,1.398]
[1750124251011,0.9812022,654.45,654.41,1.398]
[1750124251307,0.9812022,654.44,654.41,1.398]
[1750124251506,2.76979299,654.47,654.41,1.398]
[1750124251712,2.76979299,654.46,654.41,1.398]
[1750124251907,1.52070534,654.49,654.41,1.398]
[1750124252108,0.98131675,654.48,654.41,1.398]
[1750124252307,0.98131675,654.47,654.41,1.398]
[1750124252512,1.48951876,654.48,654.41,1.398]
[1750124253013,1.13743767,654.46,654.41,1.398]
[1750124253409,0.98131675,654.48,654.41,1.398]
[1750124253608,1.13743767,654.48,654.41,1.398]
[1750124253913,1.13743767,654.49,654.41,1.398]
[1750124256316,2.11886487,654.49,654.41,1.398]
[1750124256513,0.9814272,654.48,654.41,1.398]
[1750124256712,1.13743767,654.49,654.41,1.398]
[1750124256914,1.13743767,654.48,654.41,1.398]
[1750124258418,1.13743767,654.47,654.41,1.398]
[1750124258717,1.13743767,654.48,654.41,1.398]
[1750124259515,2.11915335,654.48,654.41,1.398]
[1750124259720,0.98171568,654.47,654.41,1.398]
[1750124260118,0.98226865,654.47,654.41,1.398]
[1750124260618,1.13743767,654.48,654.41,1.398]
[1750124262826,1.13743767,654.47,654.41,1.398]
[1750124263223,1.13743767,654.46,654.41,1.398]
[1750124264223,1.13743767,654.49,654.41,1.398]
[1750124265122,2.11977402,654.49,654.41,1.398]
[1750124265323,0.98233635,654.48,654.41,1.398]
[1750124265524,2.11977402,654.48,654.41,1.398]
[1750124265823,0.98233635,654.47,654.41,1.398]
[1750124266125,1.13743767,654.48,654.41,1.398]
[1750124267827,1.13743767,654.49,654.41,1.398]
[1750124268426,1.13743767,654.47,654.41,1.398]
[1750124268725,2.28363858,654.71,654.19,1.856]
[1750124268726,1.13743767,654.46,654.19,1.856]
[1750124268928,1.13743767,654.47,654.19,1.856]
[1750124269729,2.77576423,654.53,654.19,1.856]
[1750124269730,1.13743767,654.46,654.19,1.856]
[1750124271026,1.13743767,654.46,654.2,1.582]
[1750124271325,1.13743767,654.46,654.21,1.841]
[1750124271526,1.13743767,654.45,654.21,1.841]
[1750124272225,1.13743767,654.46,654.21,1.841]
[1750124272526,1.13743767,654.45,654.21,1.841]
[1750124273325,1.13743767,654.44,654.21,1.841]
[1750124273926,1.13743767,654.43,654.21,1.841]
[1750124275232,1.13743767,654.44,654.21,1.841]
[1750124275431,1.13743767,654.43,654.21,1.841]
[1750124275932,1.13743767,654.44,654.21,1.841]
[1750124276131,1.13743767,654.45,654.21,1.841]
[1750124276336,1.13743767,654.44,654.21,1.841]
[1750124277036,0.98432856,654.44,654.21,1.841]
[1750124277538,1.13743767,654.45,654.21,1.841]
[1750124279239,1.13743767,654.44,654.21,1.841]
[1750124279438,1.13743767,654.46,654.21,1.841]
[1750124279641,2.12005706,654.46,654.21,1.841]
[1750124279833,0.98261939,654.45,654.21,1.841]
[1750124280535,1.13743767,654.46,654.21,1.841]
[1750124281735,1.13743767,654.47,654.21,1.841]
[1750124281940,1.13743767,654.46,654.21,1.841]
[1750124283137,1.13743767,654.49,654.21,1.841]
[1750124283441,0.98257109,654.53,654.21,1.841]
[1750124283737,0.98257109,654.54,654.21,1.841]
[1750124284139,1.13743767,654.56,654.21,1.841]
[1750124284838,1.13743767,654.57,654.21,1.841]
[1750124285642,1.13743767,654.58,654.21,1.841]
[1750124286141,1.13743767,654.59,654.21,1.841]
[1750124286347,1.13743767,654.64,654.21,1.841]
[1750124286842,1.13743767,654.65,654.21,1.841]
[1750124287542,1.13743767,654.66,654.21,1.841]
[1750124288542,1.13743767,654.67,654.21,1.841]
[1750124291149,1.13743767,654.67,654.22,1.702]
[1750124292149,1.13743767,654.69,654.22,1.702]
[1750124292346,1.13743767,654.75,654.22,1.702]
[1750124292545,1.13743767,654.77,654.22,1.702]
[1750124293048,1.13743767,654.76,654.22,1.702]
[1750124293246,1.13743767,654.77,654.22,1.702]
[1750124294550,1.13743767,654.78,654.22,1.702]
[1750124294753,2.11888597,654.78,654.22,1.702]
[1750124294951,0.9814483,654.77,654.22,1.702]
[1750124295151,1.13743767,654.77,654.22,1.702]
[1750124295353,1.13743767,654.77,654.23,1.672]
[1750124295954,1.13743767,654.78,654.23,1.672]
[1750124296152,1.13743767,654.77,654.23,1.672]
[1750124298256,1.13743767,654.78,654.23,1.672]
[1750124298552,1.13743767,654.81,654.23,1.672]
[1750124298951,1.13743767,654.83,654.23,1.672]
[1750124299855,1.13743767,654.82,654.23,1.672]
[1750124300157,1.13743767,654.8,654.23,1.672]
[1750124300555,1.13743767,654.8,654.24,1.789]
[1750124302159,1.13743767,654.78,654.24,1.789]
[1750124302856,0.9800751,654.79,654.24,1.789]
[1750124303059,1.13743767,654.8,654.24,1.789]
[1750124305967,1.13743767,654.79,654.24,1.789]
[1750124307970,1.13743767,654.77,654.24,1.789]
[1750124308373,1.13743767,654.76,654.24,1.789]
[1750124308667,1.13743767,654.77,654.24,1.789]
[1750124309269,1.13743767,654.76,654.24,1.789]
[1750124309772,1.13743767,654.77,654.24,1.789]
[1750124309974,1.13743767,654.76,654.24,1.789]
[1750124311569,1.13743767,654.75,654.24,1.789]
[1750124312074,1.13743767,654.74,654.24,1.789]
[1750124312373,1.13743767,654.75,654.24,1.789]
[1750124312670,1.13743767,654.74,654.24,1.789]
[1750124313073,1.13743767,654.75,654.24,1.789]
[1750124314271,2.11971243,654.75,654.24,1.789]
[1750124314470,2.11971243,654.75,654.25,1.793]
[1750124314471,0.9822652,654.74,654.25,1.793]
[1750124314775,1.13743767,654.75,654.25,1.793]
[1750124315670,1.13743767,654.78,654.25,1.793]
[1750124316073,2.11970287,654.78,654.25,1.793]
[1750124316273,2.11970287,654.77,654.25,1.793]
[1750124316570,0.9822652,654.76,654.25,1.793]
[1750124316768,1.13743767,654.77,654.25,1.793]
[1750124317776,1.13743767,654.78,654.26,1.13]
[1750124318475,1.13743767,654.76,654.26,1.13]
[1750124319175,1.13743767,654.75,654.26,1.13]
[1750124319680,1.13743767,654.76,654.26,1.13]
[1750124320575,1.13743767,654.75,654.26,1.13]
[1750124320777,1.13743767,654.76,654.26,1.13]
[1750124321480,1.13743767,654.75,654.26,1.13]
[1750124321780,1.13743767,654.76,654.26,1.13]
[1750124321974,1.13743767,654.74,654.26,1.13]
[1750124322176,1.13743767,654.69,654.26,1.13]
[1750124322379,1.13743767,654.67,654.26,1.13]
[1750124322577,1.13743767,654.68,654.26,1.13]
[1750124323180,1.13743767,654.67,654.26,1.13]
[1750124323780,1.13743767,654.68,654.26,1.13]
[1750124324080,1.13743767,654.67,654.26,1.13]
[1750124325474,1.13743767,654.66,654.26,1.13]
[1750124326579,1.13743767,654.65,654.26,1.13]
[1750124326775,1.13743767,654.62,654.26,1.13]
[1750124327281,1.13743767,654.61,654.26,1.13]
[1750124327480,1.13743767,654.58,654.26,1.13]
[1750124327677,1.13743767,654.57,654.26,1.13]
[1750124328078,1.13743767,654.58,654.26,1.13]
[1750124328278,1.13743767,654.57,654.26,1.13]
[1750124328483,1.13743767,654.58,654.26,1.13]
[1750124329181,1.13743767,654.57,654.26,1.13]
[1750124329678,2.12079027,654.57,654.26,1.13]
[1750124329877,0.9833526,654.56,654.26,1.13]
[1750124330082,1.13743767,654.57,654.26,1.13]
[1750124330283,1.13743767,654.53,654.26,1.13]
[1750124330478,1.13743767,654.49,654.26,1.13]
[1750124331079,1.13743767,654.5,654.26,1.13]
[1750124331784,1.13743767,654.47,654.26,1.13]
[1750124331980,1.13743767,654.48,654.27,1.375]
[1750124332384,1.13743767,654.49,654.27,1.375]
[1750124333181,1.13743767,654.47,654.27,1.375]
[1750124335784,1.13743767,654.48,654.27,1.375]
[1750124336388,1.13743767,654.47,654.27,1.375]
[1750124336584,1.13743767,654.48,654.27,1.375]
[1750124336787,1.13743767,654.47,654.27,1.375]
[1750124337387,2.12147598,654.49,654.27,1.375]
[1750124337684,0.98403831,654.48,654.27,1.375]
[1750124338084,1.13743767,654.49,654.27,1.375]
[1750124339086,1.13743767,654.51,654.27,1.375]
[1750124339283,3.81543439,655.15,654.27,1.375]
[1750124339284,1.13743767,654.52,654.27,1.375]
[1750124339490,1.13743767,654.51,654.27,1.375]
[1750124340190,1.13743767,654.52,654.27,1.375]
[1750124341092,1.13743767,654.53,654.27,1.375]
[1750124342093,1.13743767,654.54,654.27,1.375]
[1750124342291,1.13743767,654.53,654.27,1.375]
[1750124342492,1.13743767,654.54,654.27,1.375]
[1750124342690,1.13743767,654.53,654.27,1.375]
[1750124346597,1.13743767,654.62,654.28,1.561]
[1750124346798,1.13743767,654.61,654.28,1.561]
[1750124347199,1.13743767,654.62,654.28,1.561]
[1750124347597,1.13743767,654.61,654.28,1.561]
[1750124347997,1.13743767,654.63,654.28,1.561]
[1750124348300,1.13743767,654.62,654.28,1.561]
[1750124348500,1.13743767,654.63,654.28,1.561]
[1750124349200,1.13743767,654.64,654.28,1.561]
[1750124349398,1.13743767,654.63,654.28,1.561]
[1750124349598,1.13743767,654.64,654.28,1.561]
[1750124349799,2.11706788,654.64,654.28,1.561]
[1750124350002,0.97963021,654.63,654.28,1.561]
[1750124350200,1.13743767,654.63,654.28,1.561]
[1750124350804,1.13743767,654.62,654.28,1.561]
[1750124351103,1.13743767,654.61,654.28,1.561]
[1750124351703,1.13743767,654.63,654.28,1.561]
[1750124352107,1.13743767,654.62,654.28,1.561]
[1750124352502,1.13743767,654.61,654.28,1.561]
[1750124353707,2.11706024,654.61,654.28,1.561]
[1750124353906,0.97962257,654.6,654.28,1.561]
[1750124354102,0.97962257,654.61,654.28,1.561]
[1750124354309,1.13743767,654.62,654.28,1.561]
[1750124355508,1.13743767,654.61,654.28,1.561]
[1750124356308,1.13743767,654.58,654.28,1.561]
[1750124356610,1.13743767,654.57,654.28,1.561]
[1750124358211,1.13743767,654.56,654.28,1.561]
[1750124359110,0.97974809,654.56,654.28,1.561]
[1750124359505,1.13743767,654.57,654.28,1.561]
[1750124359709,1.13743767,654.56,654.28,1.561]
[1750124359915,1.13743767,654.57,654.28,1.561]
[1750124360210,1.13743767,654.56,654.28,1.561]
[1750124360410,1.13743767,654.57,654.28,1.561]
[1750124360611,1.13743767,654.56,654.28,1.561]
[1750124360811,1.13743767,654.54,654.28,1.561]
[1750124361411,1.13743767,654.53,654.28,1.561]
[1750124362712,1.13743767,654.55,654.28,1.561]
[1750124362908,1.13743767,654.56,654.28,1.561]
[1750124364009,1.13743767,654.57,654.28,1.561]
[1750124364906,1.13743767,654.56,654.28,1.561]
[1750124365509,1.13743767,654.57,654.28,1.561]
[1750124366810,1.13743767,654.56,654.28,1.561]
[1750124367710,1.13743767,654.56,654.29,1.826]
[1750124368416,0.98045471,654.56,654.29,1.826]
[1750124368613,1.13743767,654.57,654.29,1.826]
[1750124368815,1.13743767,654.56,654.29,1.826]
[1750124369212,1.13743767,654.57,654.29,1.826]
[1750124369712,1.13743767,654.56,654.29,1.826]
[1750124370517,1.13743767,654.55,654.29,1.826]
[1750124372816,1.13743767,654.54,654.29,1.826]
[1750124374020,1.13743767,654.53,654.29,1.826]
[1750124374220,1.13743767,654.54,654.29,1.826]
[1750124374720,1.52070534,654.67,654.29,1.826]
[1750124374721,1.13743767,654.53,654.29,1.826]
[1750124375421,1.13743767,654.52,654.29,1.826]
[1750124375617,1.13743767,654.51,654.29,1.826]
[1750124377524,1.13743767,654.5,654.29,1.826]
[1750124378320,1.13743767,654.49,654.29,1.826]
[1750124378823,1.13743767,654.48,654.29,1.826]
[1750124379628,2.28363858,654.7,654.29,1.826]
[1750124379629,1.13743767,654.49,654.29,1.826]
[1750124379829,1.13743767,654.48,654.29,1.826]
[1750124380126,1.13743767,654.49,654.29,1.826]
[1750124380626,1.13743767,654.48,654.29,1.826]
[1750124381330,1.13743767,654.49,654.29,1.826]
[1750124381626,1.13743767,654.46,654.29,1.826]
[1750124383227,1.13743767,654.47,654.29,1.826]
[1750124383925,1.13743767,654.48,654.29,1.826]
[1750124385333,2.12177745,654.49,654.29,1.826]
[1750124385532,0.98433978,654.48,654.29,1.826]
[1750124385733,1.13743767,654.51,654.29,1.826]
[1750124387031,1.13743767,654.5,654.29,1.826]
[1750124388836,1.13743767,654.51,654.28,1.561]
[1750124389233,1.13743767,654.5,654.28,1.561]
[1750124389536,1.13743767,654.51,654.28,1.561]
[1750124390437,1.13743767,654.5,654.28,1.561]
[1750124390637,1.13743767,654.5,654.29,1.311]
[1750124391037,2.12175404,654.5,654.29,1.311]
[1750124391237,0.98431637,654.49,654.29,1.311]
[1750124391537,1.13743767,654.51,654.29,1.311]
[1750124393234,1.13743767,654.5,654.29,1.311]
[1750124393739,1.13743767,654.51,654.29,1.311]
[1750124395540,1.13743767,654.64,654.29,1.311]
[1750124395741,1.13743767,654.71,654.29,1.311]
[1750124395937,1.13743767,654.71,654.3,1.917]
[1750124396240,1.13743767,654.67,654.3,1.917]
[1750124396438,3.41418243,654.69,654.3,1.917]
[1750124396636,0.98421739,654.68,654.3,1.917]
[1750124396848,1.13743767,654.69,654.3,1.917]
[1750124397037,1.13743767,654.68,654.3,1.917]
[1750124397540,1.13743767,654.67,654.3,1.917]
[1750124397737,1.13743767,654.68,654.3,1.917]
[1750124398642,1.13743767,654.7,654.3,1.917]
[1750124398843,3.81543439,656.02,654.3,1.917]
[1750124398844,1.13743767,654.72,654.3,1.917]
[1750124399044,1.13743767,654.7,654.3,1.917]
[1750124399743,1.13743767,654.72,654.3,1.917]
[1750124400442,1.13743767,654.7,654.3,1.917]
[1750124401339,1.13743767,654.71,654.3,1.917]
[1750124403245,1.13743767,654.7,654.3,1.917]
[1750124404248,0.98814866,654.7,654.3,1.917]
[1750124404446,1.13743767,654.71,654.3,1.917]
[1750124404649,1.13743767,654.7,654.3,1.917]
[1750124404849,1.13743767,654.71,654.3,1.917]
[1750124405449,0.98814866,654.7,654.3,1.917]
[1750124405649,1.13743767,654.62,654.3,1.917]
[1750124407048,0.98799192,654.63,654.3,1.917]
[1750124407349,0.98799192,654.65,654.3,1.917]
[1750124407647,1.13743767,654.66,654.3,1.917]
[1750124407847,1.13743767,654.67,654.3,1.917]
[1750124408050,1.13743767,654.67,654.31,1.47]
[1750124409051,1.13743767,654.65,654.31,1.47]
[1750124409256,1.13743767,654.66,654.31,1.47]
[1750124410851,2.12512954,654.66,654.31,1.47]
[1750124411053,0.98769187,654.65,654.31,1.47]
[1750124411254,1.13743767,654.66,654.31,1.47]
[1750124411752,1.13743767,654.66,654.32,2.067]
[1750124413957,2.12488196,654.66,654.32,2.067]
[1750124414159,0.98744429,654.65,654.32,2.067]
[1750124414352,0.98728096,654.65,654.32,2.067]
[1750124414554,1.13743767,654.67,654.32,2.067]
[1750124414755,1.13743767,654.66,654.32,2.067]
[1750124415353,1.13743767,654.65,654.32,2.067]
[1750124416856,1.13743767,654.64,654.32,2.067]
[1750124417356,1.13743767,654.65,654.33,1.144]
[1750124417559,1.13743767,654.64,654.33,1.144]
[1750124417757,2.12471863,654.64,654.33,1.144]
[1750124417961,0.98728096,654.63,654.33,1.144]
[1750124418161,1.13743767,654.64,654.33,1.144]
[1750124418757,1.13743767,654.63,654.33,1.144]
[1750124419256,1.13743767,654.63,654.34,1.788]
[1750124419462,1.13743767,654.59,654.34,1.788]
[1750124420358,1.13743767,654.62,654.34,1.788]
[1750124420561,1.13743767,654.6,654.34,1.788]
[1750124420759,1.13743767,654.61,654.34,1.788]
[1750124421157,2.12471863,654.61,654.34,1.788]
[1750124421360,2.12471863,654.6,654.34,1.788]
[1750124421558,0.98728096,654.59,654.34,1.788]
[1750124421757,1.13743767,654.6,654.34,1.788]
[1750124425767,1.13743767,654.59,654.34,1.788]
[1750124426662,1.13743767,654.6,654.34,1.788]
[1750124429370,1.13743767,654.59,654.34,1.788]
[1750124429966,1.13743767,654.6,654.34,1.788]
[1750124430272,1.13743767,654.57,654.34,1.788]
[1750124430669,1.13743767,654.56,654.34,1.788]
[1750124431975,1.13743767,654.56,654.35,1.165]
[1750124435775,1.13743767,654.55,654.35,1.165]
[1750124439374,1.13743767,654.54,654.35,1.165]
[1750124439778,1.13743767,654.53,654.35,1.165]
[1750124441479,1.13743767,654.61,654.35,1.165]
[1750124443780,1.13743767,654.6,654.35,1.165]
[1750124444383,1.13743767,654.59,654.35,1.165]
[1750124444579,2.12531965,654.61,654.35,1.165]
[1750124444785,0.98788198,654.6,654.35,1.165]
[1750124444982,1.13743767,654.61,654.33,1.144]
[1750124445582,2.12546298,654.64,654.33,1.144]
[1750124445782,0.98802531,654.63,654.33,1.144]
[1750124445982,2.12546298,654.64,654.33,1.144]
[1750124446184,0.98802531,654.63,654.33,1.144]
[1750124446681,0.98802531,654.64,654.33,1.144]
[1750124447185,1.13743767,654.65,654.33,1.144]